bitfinex-derivatives/quotes_ETHF0:USTF0_20250620
["timestamp","ask_amount","ask_price","bid_price","bid_amount"]
[1750433285576,0.79991,2500.1,2500.0,0.7999]
[1750433285883,0.79996,2500.0,2499.9,0.79992]
[1750433286074,0.79992,2500.1,2500.0,0.7999]
[1750433286274,25.84292,2500.1,2500.0,0.7999]
[1750433286982,25.8429,2500.1,2500.0,0.7999]
[1750433287281,7.47889,2500.2,2500.1,0.7999]
[1750433287480,0.79993,2500.1,2499.8,1.2964]
[1750433287781,0.79993,2500.1,2500.0,0.79991]
[1750433288576,32.52189,2500.2,2500.1,0.7999]
[1750433288776,0.79987,2500.2,2500.1,0.7999]
[1750433288985,32.52187,2500.2,2500.1,0.7999]
[1750433289285,3.2078,2500.3,2500.2,0.79987]
[1750433289485,1.48591,2500.4,2500.3,0.79983]
[1750433289681,25.043,2500.4,2499.9,0.6508]
[1750433289983,0.7999,2500.2,2500.1,0.79986]
[1750433290777,0.79985,2500.3,2500.2,0.79987]
[1750433290978,5.1466,2500.6,2500.0,1.99982]
[1750433291179,32.5228,2500.5,2500.4,0.79977]
[1750433292489,0.79984,2500.4,2500.3,0.79981]
[1750433292676,0.79987,2500.3,2500.2,0.79984]
[1750433292878,4.00767,2500.3,2500.2,0.79984]
[1750433293190,0.79987,2500.3,2500.2,0.79984]
[1750433293486,0.7999,2500.2,2500.1,0.79988]
[1750433293691,25.8429,2500.2,2500.1,0.79988]
[1750433295686,25.8429,2500.2,2499.9,0.6508]
[1750433295687,0.79998,2500.0,2499.9,0.79993]
[1750433295888,25.043,2500.2,2499.8,1.99994]
[1750433296188,7.47988,2500.2,2500.1,0.7999]
[1750433296386,33.75308713,2500.2,2500.1,0.7999]
[1750433297086,32.95320713,2500.2,2500.1,0.7999]
[1750433297286,33.75307713,2500.2,2500.1,0.7999]
[1750433297488,0.79993,2500.1,2500.0,0.79992]
[1750433298190,2.03182722,2500.1,2500.0,0.79992]
[1750433298391,0.79993,2500.1,2500.0,0.79992]
[1750433298590,2.03227871,2500.1,2500.0,0.79992]
[1750433299091,0.79993,2500.0,2499.9,0.79996]
[1750433299393,0.79992,2500.1,2500.0,0.7999]
[1750433299584,1.23219875,2500.1,2500.0,0.7999]
[1750433299779,25.8409,2500.1,2500.0,0.7999]
[1750433300183,0.79996,2500.0,2499.9,0.79994]
[1750433300387,0.79996,2500.0,2499.8,1.2813]
[1750433300388,0.79996,2499.9,2499.8,2.08126]
[1750433301291,0.79995,2500.0,2499.9,0.79993]
[1750433301492,2.03303161,2500.0,2499.9,0.79993]
[1750433301791,0.79996,2499.9,2499.8,2.08126]
[1750433302790,2.03365984,2499.9,2499.8,0.79996]
[1750433302990,0.80003,2499.8,2499.7,0.8]
[1750433303190,25.84003,2499.8,2499.7,0.8]
[1750433304491,25.84003,2499.8,2499.7,2.0786]
[1750433304988,0.80006,2499.6,2499.5,4.00787]
[1750433305180,0.80009,2499.5,2499.4,0.8001]
[1750433305387,25.83909,2499.5,2499.4,0.80012]
[1750433305586,27.07269209,2499.5,2499.4,0.80012]
[1750433305787,0.80021,2499.2,2499.1,0.80018]
[1750433306095,25.83921,2499.2,2499.1,0.80018]
[1750433306291,0.80022,2499.1,2499.0,0.80024]
[1750433306798,25.039,2499.2,2499.1,0.80022]
[1750433306988,4.00792,2499.5,2499.4,0.80012]
[1750433307191,36.95187647,2499.5,2499.4,0.80012]
[1750433307391,0.80015,2499.4,2499.3,0.80013]
[1750433307587,1.23195647,2499.4,2499.0,1.2867]
[1750433307792,0.80025,2499.0,2498.9,1.47886]
[1750433307997,25.84125,2499.0,2498.9,1.47886]
[1750433308188,25.041,2499.0,2498.9,1.47886]
[1750433308389,25.041,2499.0,2498.9,2.76556]
[1750433308591,0.80018,2499.3,2499.2,0.80019]
[1750433308785,31.714,2499.3,2498.9,1.9653]
[1750433308997,0.80025,2499.1,2499.0,0.80022]
[1750433309199,0.80021,2499.2,2499.1,0.80019]
[1750433309389,32.51417,2499.3,2499.2,0.80019]
[1750433309991,38.04416823,2499.3,2498.3,0.86979781]
[1750433310292,4.00824,2498.4,2497.8,6.674]
[1750433310598,26.27116823,2498.3,2498.2,0.80049]
[1750433310784,25.04,2498.3,2498.2,0.80049]
[1750433311997,3.2078,2498.4,2498.3,0.80047]
[1750433312492,0.80053,2498.2,2497.5,3.2078]
[1750433312690,3.2078,2498.1,2498.0,0.80057]
[1750433312897,3.2078,2498.4,2498.3,0.80047]
[1750433313494,28.2488,2498.4,2496.9,4.00454]
[1750433313695,3.2078,2498.1,2497.5,0.6885]
[1750433313897,0.80059,2498.0,2497.6,6.675]
[1750433314084,3.2078,2498.1,2498.0,0.80057]
[1750433314303,3.2078,2498.1,2497.6,6.675]
[1750433314304,29.04834,2498.1,2497.6,6.675]
[1750433314491,3.2078,2498.1,2498.0,0.80057]
[1750433315097,25.044,2498.4,2498.0,6.675]
[1750433315292,25.044,2498.4,2498.3,0.80046]
[1750433316394,3.2078,2498.5,2498.4,0.80044]
[1750433316598,28.2548,2498.5,2498.4,0.80044]
[1750433316791,3.2078,2498.5,2498.4,0.80044]
[1750433317097,3.2078,2498.5,2498.4,7.47644]
[1750433317498,25.047,2498.8,2498.4,10.68424]
[1750433317686,25.047,2498.8,2498.7,0.80035]
[1750433317891,3.8551,2499.3,2498.8,2.00079]
[1750433318086,3.8551,2499.3,2499.2,0.80019]
[1750433318300,3.2078,2499.3,2499.2,0.80019]
[1750433318495,25.046,2499.5,2499.0,5.2084]
[1750433318696,25.046,2499.5,2499.1,1.3056]
[1750433318893,25.84609,2499.5,2499.4,0.8001]
[1750433319093,28.2538,2499.6,2499.5,0.80009]
[1750433319398,30.28204999,2499.6,2499.4,0.8001]
[1750433319599,0.80009,2499.5,2499.4,0.8001]
[1750433319997,29.05388,2499.6,2499.5,0.80009]
[1750433320398,0.8,2499.8,2499.7,0.80001]
[1750433320699,25.84598,2499.9,2499.8,0.79999]
[1750433320903,25.84595,2500.0,2499.9,0.79994]
[1750433321093,25.84595,2500.0,2499.5,3.30579]
[1750433321094,0.79998,2499.9,2499.8,0.79998]
[1750433321289,25.046,2500.0,2499.5,1.3056]
[1750433321801,0.79999,2499.9,2499.8,0.79998]
[1750433322189,25.84494,2500.0,2499.5,3.30579]
[1750433322391,25.045,2500.0,2499.5,1.3056]
[1750433322592,25.045,2500.0,2499.9,0.79996]
[1750433322796,4.00754,2500.6,2500.5,0.79977]
[1750433322994,3.2078,2500.6,2500.5,0.79977]
[1750433325099,0.79973,2500.7,2500.6,0.79974]
[1750433325296,30.2759,2500.9,2500.3,6.675]
[1750433325605,0.79973,2500.7,2500.6,0.79973]
[1750433325903,0.79975,2500.6,2500.5,0.79975]
[1750433326409,0.6039,2500.7,2500.6,0.79974]
[1750433327505,0.6039,2500.7,2500.6,2.13234]
[1750433327706,0.79951,2501.4,2500.6,6.3326]
[1750433328009,0.79948,2501.4,2501.3,0.79949]
[1750433328304,28.4018,2501.6,2501.5,0.79945]
[1750433328505,0.79951,2501.4,2501.3,0.79951]
[1750433328911,0.79953,2501.3,2501.2,0.79952]
[1750433330610,4.00724,2501.6,2501.5,0.79945]
[1750433330919,3.2078,2501.6,2501.5,0.79945]
[1750433331220,3.2078,2501.6,2501.5,7.46745]
[1750433331422,3.2078,2502.1,2502.0,0.79926]
[1750433331615,29.26009,2502.1,2502.0,0.79929]
[1750433331919,0.79932,2502.0,2501.9,0.79931]
[1750433332219,26.04232,2502.0,2501.9,0.79931]
[1750433332821,0.79934,2501.9,2501.8,0.79933]
[1750433333617,0.79932,2502.0,2501.9,0.7993]
[1750433333921,4.00712,2502.0,2501.9,0.7993]
[1750433334813,0.79932,2502.0,2501.9,0.7993]
[1750433335520,0.79935,2501.9,2501.8,0.79933]
[1750433336018,0.79939,2501.8,2501.7,0.79936]
[1750433336219,0.79934,2501.9,2501.8,0.79932]
[1750433337016,25.189,2502.1,2501.8,0.79932]
[1750433337017,25.98328,2502.1,2502.0,0.79924]
[1750433337221,25.98327,2502.2,2502.1,0.79923]
[1750433337520,0.79929,2502.1,2502.0,0.79926]
[1750433338227,0.79935,2501.9,2501.8,0.79932]
[1750433338422,0.79945,2501.5,2501.1,3.2078]
[1750433338725,0.79945,2501.5,2501.4,0.79947]
[1750433339025,0.79951,2501.4,2501.3,0.79949]
[1750433339616,0.80025,2499.0,2498.9,3.2078]
[1750433339816,25.188,2499.0,2498.8,3.2078]
[1750433340012,26.223,2499.3,2498.7,3.2078]
[1750433340218,26.223,2499.3,2498.8,2.00079]
[1750433340420,19.9472,2499.9,2498.6,7.166]
[1750433340421,3.2078,2499.8,2499.2,3.2078]
[1750433340623,4.4605,2499.8,2499.1,10.3738]
[1750433340820,5.26049,2499.8,2499.4,0.80011]
[1750433341126,3.2078,2499.8,2499.5,0.80008]
[1750433341424,3.2078,2499.8,2499.3,7.168]
[1750433341625,0.80004,2499.7,2499.2,2.14287]
[1750433341828,0.80004,2499.7,2499.2,9.31087]
[1750433342222,0.80007,2499.6,2499.2,9.31087]
[1750433342727,0.80004,2499.7,2499.3,0.80015]
[1750433343127,4.4605,2499.8,2499.2,9.31086]
[1750433343430,3.2078,2499.5,2499.2,7.168]
[1750433343724,3.2078,2499.5,2499.3,7.96814]
[1750433343924,3.2078,2499.5,2499.3,9.23594]
[1750433344128,3.2078,2499.5,2499.4,0.80012]
[1750433344426,3.2078,2499.5,2499.3,9.23593]
[1750433344824,3.2078,2499.5,2499.4,7.168]
[1750433345020,3.2078,2499.5,2499.4,8.4358]
[1750433345627,3.2078,2499.5,2499.4,9.23592]
[1750433346933,4.00789,2499.5,2499.4,8.4358]
[1750433347129,3.2078,2499.5,2499.4,9.23592]
[1750433347631,3.2078,2499.9,2499.6,0.80004]
[1750433347820,0.80009,2499.5,2499.4,8.4358]
[1750433348021,0.80009,2499.5,2499.4,8.4368]
[1750433348221,0.80008,2499.6,2499.4,9.2369]
[1750433348418,0.80008,2499.6,2499.4,8.4368]
[1750433348625,0.80008,2499.6,2499.5,0.80009]
[1750433349026,0.80008,2499.6,2499.4,9.2369]
[1750433349225,0.80009,2499.5,2499.4,9.2369]
[1750433349440,0.80009,2499.5,2499.4,8.4368]
[1750433349736,0.80009,2499.5,2499.4,9.23692]
[1750433350535,0.80009,2499.5,2499.4,7.169]
[1750433351034,6.53444,2499.9,2499.3,0.80015]
[1750433351035,0.80012,2499.4,2499.3,0.80015]
[1750433351239,0.80012,2499.4,2499.3,7.96915]
[1750433352038,0.80011,2499.5,2499.4,0.8001]
[1750433352233,0.80012,2499.4,2499.3,7.96913]
[1750433352433,0.80011,2499.5,2499.4,0.80011]
[1750433352736,0.80011,2499.5,2499.4,7.169]
[1750433353530,0.80011,2499.5,2499.4,7.96912]
[1750433353837,0.80009,2499.5,2499.4,7.9691]
[1750433355537,0.80005,2499.7,2499.4,7.169]
[1750433355733,0.80002,2499.8,2499.7,0.8]
[1750433356043,4.00778,2499.9,2499.8,0.79999]
[1750433356233,3.2078,2499.9,2499.8,7.96899]
[1750433356427,0.80006,2499.6,2499.5,2.017]
[1750433356635,0.80006,2499.6,2499.5,9.98607]
[1750433357441,0.80006,2499.6,2499.5,8.62947]
[1750433357736,5.20778,2499.9,2499.4,0.8001]
[1750433357737,0.80013,2499.5,2499.4,0.8001]
[1750433357936,0.80015,2499.4,2499.3,0.80014]
[1750433358331,0.80015,2499.4,2499.3,7.96914]
[1750433358835,0.80015,2499.3,2499.2,2.16697]
[1750433359040,0.80022,2499.1,2499.0,1.46062]
[1750433359333,0.80022,2499.1,2499.0,0.80022]
[1750433359541,0.80028,2499.0,2498.9,7.96926]
[1750433359938,0.80028,2499.0,2498.9,7.96928]
[1750433360140,0.80028,2499.0,2498.9,0.80028]
[1750433360340,2.00056,2499.1,2498.7,1.3668]
[1750433360638,0.80034,2498.8,2498.7,7.96933]
[1750433361039,0.80035,2498.7,2498.6,46.86935]
[1750433361244,0.80035,2498.7,2498.6,46.069]
[1750433361440,0.80041,2498.5,2498.4,7.96944]
[1750433361740,4.00821,2498.5,2498.4,7.96944]
[1750433361928,4.00821,2498.5,2498.4,7.169]
[1750433362243,4.00821,2498.5,2498.4,7.96944]
[1750433363338,3.2078,2498.5,2498.4,0.80044]
[1750433363740,4.00821,2498.5,2498.4,0.80044]
[1750433363938,3.2078,2498.5,2498.4,0.80044]
[1750433364435,4.00821,2498.5,2498.4,0.80044]
[1750433364742,3.2078,2498.5,2498.4,0.80044]
[1750433365339,3.2078,2498.5,2498.4,2.08734]
[1750433366041,4.00814,2498.8,2498.7,0.80035]
[1750433366641,3.2078,2498.8,2498.7,0.80035]
[1750433366942,4.00811,2498.8,2498.7,0.80035]
[1750433367552,3.2078,2498.8,2498.2,0.6932]
[1750433367755,0.8004,2498.6,2498.5,0.80037]
[1750433368238,0.8004,2498.6,2498.3,7.171]
[1750433368448,4.00823,2498.5,2498.4,0.80042]
[1750433369038,3.2078,2498.5,2498.4,0.80042]
[1750433369343,0.80047,2498.4,2498.3,0.80046]
[1750433369640,0.80054,2498.2,2498.1,0.80052]
[1750433369947,0.80054,2498.1,2498.0,0.80054]
[1750433370146,4.00833,2498.2,2498.1,0.80054]
[1750433370347,3.2078,2498.2,2498.1,0.80054]
[1750433370556,4.00831,2498.2,2498.1,0.80054]
[1750433371048,3.2078,2498.2,2498.1,0.80054]
[1750433371345,4.00831,2498.2,2498.1,0.80054]
[1750433372142,3.2078,2498.2,2498.1,0.80054]
[1750433373641,3.2078,2498.5,2498.4,0.80044]
[1750433374440,4.00821,2498.5,2498.4,0.80044]
[1750433374740,3.2078,2498.5,2498.4,0.80044]
[1750433377647,0.6426,2498.7,2498.6,0.80038]
[1750433380240,1.44295,2498.7,2498.6,0.80038]
[1750433380654,0.6426,2498.7,2498.6,0.80038]
[1750433381053,1.44295,2498.7,2498.6,0.80038]
[1750433382054,0.6426,2498.7,2498.1,2.00131]
[1750433382354,4.00823,2498.5,2498.4,0.80044]
[1750433383251,4.00823,2498.5,2498.1,2.00131]
[1750433383252,0.80047,2498.4,2498.3,0.80044]
[1750433383951,0.80051,2498.3,2498.2,0.80051]
[1750433384950,2.14835,2498.4,2498.3,0.80047]
[1750433385149,3.38351877,2498.4,2498.3,0.80047]
[1750433386252,0.80053,2498.2,2498.1,0.8005]
[1750433386454,4.00833,2498.2,2498.1,0.8005]
[1750433387148,3.2078,2498.2,2498.1,0.8005]
[1750433388357,5.24586001,2498.2,2498.1,0.8005]
[1750433388754,4.00831,2498.2,2498.1,0.8005]
[1750433389050,3.2078,2498.2,2498.1,0.8005]
[1750433389254,5.24602675,2498.2,2498.1,0.8005]
[1750433389457,5.24603675,2498.2,2498.1,0.80054]
[1750433390159,0.80057,2498.1,2498.0,0.80054]
[1750433390557,0.80063,2497.9,2497.8,0.80061]
[1750433390761,0.80066,2497.8,2497.7,0.80064]
[1750433391057,2.03621914,2497.8,2497.7,0.80064]
[1750433391765,1.23555914,2497.8,2497.7,0.80064]
[1750433392563,0.8007,2497.7,2497.6,0.80069]
[1750433392862,0.80072,2497.6,2497.5,0.80071]
[1750433393069,5.2426166,2497.6,2497.5,0.80071]
[1750433393365,0.80076,2497.5,2497.4,0.80074]
[1750433393756,2.03525029,2497.5,2497.4,0.80075]
[1750433393956,2.03525029,2497.5,2497.3,0.80077]
[1750433394157,0.80083,2497.2,2497.1,0.23616291]
[1750433394356,5.24201139,2497.2,2497.1,0.23616291]
[1750433394860,4.44118139,2497.2,2497.1,1.03702291]
[1750433395061,5.24201139,2497.2,2497.1,0.23616291]
[1750433395366,5.73728139,2497.2,2497.1,1.03702291]
[1750433395662,5.30473,2497.2,2497.1,0.23616291]
[1750433395961,5.30473,2497.2,2497.1,1.03702291]
[1750433396265,4.5039,2497.2,2497.1,1.03702291]
[1750433397162,3.2078,2497.2,2497.1,1.03702291]
[1750433397561,4.00863,2497.2,2497.1,1.03702291]
[1750433397754,3.2078,2497.2,2497.1,1.03702291]
[1750433398150,4.5878,2497.2,2497.1,1.03702291]
[1750433399059,3.2078,2497.2,2497.1,1.03702291]
[1750433402567,4.00863,2497.2,2497.1,0.23616291]
[1750433402761,3.2078,2497.2,2497.1,1.03702291]
[1750433403063,4.00863,2497.2,2497.1,0.23616291]
[1750433403269,5.33253,2497.2,2497.1,1.03702291]
[1750433403567,5.33253,2497.2,2497.1,0.23616291]
[1750433404468,0.80105,2496.5,2496.4,0.6782]
[1750433404768,4.00883,2496.6,2496.4,0.80106]
[1750433405067,3.2078,2496.6,2496.5,0.80105]
[1750433405464,4.00882,2496.6,2496.4,0.80106]
[1750433405667,3.2078,2496.6,2496.3,0.80111]
[1750433405967,0.80108,2496.5,2496.3,0.80111]
[1750433406162,3.2078,2496.6,2496.0,7.6752]
[1750433406358,3.2078,2497.4,2496.9,0.80092]
[1750433406564,3.9018,2497.4,2497.2,0.80083]
[1750433406764,0.80081,2497.3,2497.2,0.80082]
[1750433406965,0.80081,2497.3,2497.1,0.87016781]
[1750433407169,0.80083,2497.2,2497.1,0.06933781]
[1750433407660,38.37283,2497.2,2497.1,0.06933781]
[1750433407867,0.80092,2497.0,2496.3,2.00277]
[1750433408072,6.998,2497.2,2496.6,2.00255]
[1750433408261,29.4938,2497.4,2497.1,0.80084]
[1750433408467,29.4938,2497.4,2496.7,3.90057]
[1750433408666,0.80081,2497.3,2496.8,2.00237]
[1750433408863,3.9018,2497.4,2497.3,0.80079]
[1750433409063,3.2078,2497.4,2497.3,0.80079]
[1750433410468,3.2078,2497.7,2497.2,5.85585]
[1750433410770,0.80073,2497.6,2497.5,0.80072]
[1750433411076,4.00847,2497.7,2497.6,0.8007]
[1750433411569,4.00847,2497.7,2497.3,1.317]
[1750433411570,0.80071,2497.6,2497.5,0.80071]
[1750433411772,3.2078,2497.7,2497.3,1.317]
[1750433411773,3.2078,2497.7,2497.4,0.80076]
[1750433411974,0.80073,2497.5,2497.4,0.80076]
[1750433412168,0.80072,2497.6,2497.5,0.80072]
[1750433412368,0.80074,2497.5,2497.4,0.80074]
[1750433412771,0.80076,2497.4,2497.3,0.80077]
[1750433413073,0.80073,2497.5,2497.4,0.80073]
[1750433413371,0.80079,2497.3,2497.2,4.65461]
[1750433413572,3.2078,2497.7,2497.2,3.8538]
[1750433413767,0.80075,2497.5,2497.4,0.80075]
[1750433414169,0.80078,2497.4,2497.3,0.80078]
[1750433414373,0.80079,2497.3,2497.2,4.65461]
[1750433414576,0.80078,2497.4,2497.3,0.80077]
[1750433415275,2.00191,2497.4,2497.0,2.11437]
[1750433415471,0.80089,2497.0,2496.9,0.8009]
[1750433415774,0.80096,2496.9,2496.8,0.80094]
[1750433415974,0.80098,2496.8,2496.7,0.80097]
[1750433417571,3.2078,2497.0,2496.4,2.00269]
[1750433417771,0.80098,2496.8,2496.4,3.95719]
[1750433417978,0.801,2496.7,2496.6,0.80098]
[1750433418171,5.39092,2497.0,2496.9,0.80092]
[1750433418371,0.80095,2496.9,2496.8,0.80094]
[1750433418772,0.80097,2496.8,2496.7,0.80096]
[1750433418973,0.80098,2496.8,2496.6,2.0529]
[1750433419177,0.80099,2496.7,2496.6,2.05289]
[1750433419375,0.80098,2496.8,2496.6,2.05289]
[1750433419577,0.80098,2496.8,2496.6,2.0529]
[1750433419980,0.80098,2496.8,2496.7,0.80099]
[1750433420179,0.801,2496.7,2496.6,0.801]
[1750433420974,0.80098,2496.8,2496.7,0.80097]
[1750433421678,3.2078,2497.0,2496.6,3.2078]
[1750433421982,3.2078,2497.3,2497.2,0.80083]
[1750433422178,4.44225336,2497.3,2497.2,0.80083]
[1750433422377,3.8671,2497.7,2497.6,0.8007]
[1750433422676,5.10232976,2497.7,2497.6,0.8007]
[1750433422981,0.80075,2497.5,2497.4,0.80074]
[1750433423482,2.036416,2497.5,2497.4,0.80074]
[1750433423983,1.235666,2497.5,2497.4,0.80074]
[1750433424277,3.8671,2497.7,2497.2,6.49786]
[1750433424474,1.23609044,2497.6,2497.5,0.80073]
[1750433424782,2.03679044,2497.6,2497.5,0.80073]
[1750433426375,1.23609044,2497.6,2497.5,0.80073]
[1750433426582,2.03679044,2497.6,2497.5,0.80073]
[1750433426875,1.23609044,2497.6,2497.2,4.5091]
[1750433427078,0.80078,2497.4,2497.3,0.80076]
[1750433428077,4.6897,2497.7,2497.6,0.8007]
[1750433428281,5.9243053,2497.7,2497.6,0.8007]
[1750433428578,0.80073,2497.6,2497.5,0.8007]
[1750433428777,0.80077,2497.5,2497.4,0.80074]
[1750433429172,3.2078,2498.0,2497.2,4.5091]
[1750433429377,3.2078,2498.0,2497.9,0.80057]
[1750433429681,0.80049,2498.3,2498.2,0.80048]
[1750433429979,0.80055,2498.1,2498.0,0.80054]
[1750433430280,3.2078,2498.4,2498.3,0.80044]
[1750433430473,4.44240851,2498.4,2498.3,0.80044]
[1750433431281,3.2078,2498.4,2498.3,0.80044]
[1750433435685,3.2078,2498.4,2498.3,5.80044]
[1750433435884,3.2078,2498.4,2498.3,0.80044]
[1750433436686,0.80041,2498.5,2498.4,0.80044]
[1750433436874,0.8004,2498.6,2498.5,0.8004]
[1750433437280,1.4426,2498.6,2498.5,0.8004]
[1750433438686,0.6422,2498.6,2498.5,0.8004]
[1750433439186,1.44258,2498.6,2498.5,0.8004]
[1750433440101,0.6422,2498.6,2498.5,0.8004]
[1750433440582,3.2078,2498.7,2498.6,0.80038]
[1750433440788,3.2078,2499.0,2498.9,0.80025]
[1750433440985,4.00806,2499.0,2498.9,0.80025]
[1750433441378,0.80032,2498.9,2498.8,0.80029]
[1750433441778,4.00807,2499.0,2498.9,0.80028]
[1750433441979,5.32517,2499.0,2498.9,0.80028]
[1750433442988,3.2078,2499.0,2498.9,0.80028]
[1750433443392,3.2078,2499.3,2499.2,0.80019]
[1750433443891,4.00795,2499.3,2499.2,0.80019]
[1750433444591,3.2078,2499.3,2499.2,0.80019]
[1750433445091,4.00795,2499.3,2499.2,0.80019]
[1750433445886,3.2078,2499.3,2499.2,0.80019]
[1750433446388,3.32416795,2499.7,2499.6,0.80006]
[1750433446685,6.913,2499.9,2499.8,0.79999]
[1750433446877,1.2818,2500.0,2499.9,0.79996]
[1750433447278,2.08173,2500.0,2499.9,0.79996]
[1750433447888,0.79998,2499.9,2499.8,0.79996]
[1750433448081,0.79998,2499.9,2499.5,2.00019]
[1750433448278,2.08177,2500.0,2499.9,0.79996]
[1750433449590,3.2078,2500.1,2500.0,0.79993]
[1750433450995,0.8,2499.9,2499.8,0.79998]
[1750433451394,0.80027,2499.0,2498.9,0.80025]
[1750433451694,0.80031,2498.9,2498.8,0.8003]
[1750433451989,0.80031,2498.9,2498.8,0.80029]
[1750433452186,3.2078,2499.0,2498.9,0.80028]
[1750433452395,4.00805,2499.0,2498.9,0.80028]
[1750433452793,3.2078,2499.0,2498.9,0.80028]
[1750433452995,0.6532,2499.2,2499.1,0.80022]
[1750433453196,4.66119,2499.2,2499.1,0.80022]
[1750433453804,3.861,2499.2,2498.5,2.00098]
[1750433453988,0.80027,2499.0,2498.9,0.80027]
[1750433454297,0.80028,2498.9,2498.8,0.80029]
[1750433454493,1.3878,2499.1,2498.6,2.00094]
[1750433454796,0.80027,2499.0,2498.9,0.80027]
[1750433454996,2.18803,2499.1,2499.0,0.80025]
[1750433455401,4.008,2499.2,2499.1,0.80022]
[1750433455593,0.80031,2498.9,2498.8,0.80028]
[1750433456094,3.2078,2499.2,2498.9,0.80026]
[1750433456095,0.80027,2499.0,2498.9,0.80026]
[1750433456488,4.00801,2499.2,2499.1,0.80022]
[1750433456689,3.2078,2499.2,2499.1,0.80022]
[1750433456892,4.6463,2499.5,2499.4,0.80012]
[1750433457098,5.87625694,2499.5,2499.4,0.80012]
[1750433457495,3.8462,2499.5,2499.4,0.80012]
[1750433457799,5.07709479,2499.5,2499.4,0.80012]
[1750433458502,0.80014,2499.4,2499.3,0.80014]
[1750433458706,3.8462,2499.5,2499.4,0.80012]
[1750433458897,5.07890313,2499.5,2499.4,0.80012]
[1750433459399,0.80014,2499.4,2499.3,0.80013]
[1750433459602,0.80014,2499.4,2499.0,3.9856]
[1750433459603,1.23315677,2499.4,2499.0,1.985]
[1750433459795,5.84645,2499.5,2498.7,12.11966]
[1750433460001,0.80021,2499.2,2499.1,0.8002]
[1750433460199,1.3169,2499.3,2498.8,2.00078]
[1750433460397,0.8002,2499.2,2499.1,0.80019]
[1750433460605,0.80024,2499.1,2499.0,0.80023]
[1750433460797,0.80028,2499.0,2498.9,0.80028]
[1750433461203,1.3169,2499.1,2499.0,0.80025]
[1750433461505,1.23320418,2499.1,2499.0,0.80025]
[1750433461806,2.03342418,2499.1,2499.0,0.80025]
[1750433462198,1.23320418,2499.1,2499.0,0.80025]
[1750433462704,2.03342418,2499.1,2499.0,0.80025]
[1750433463198,1.23320418,2499.1,2499.0,0.80025]
[1750433463403,0.6384,2499.5,2499.1,2.00056]
[1750433463598,0.80021,2499.2,2499.1,0.8002]
[1750433463998,0.80018,2499.3,2499.2,0.80017]
[1750433464200,0.80021,2499.2,2499.1,0.8002]
[1750433464402,2.03448295,2499.2,2499.1,0.8002]
[1750433464704,1.23427295,2499.2,2499.1,0.8002]
[1750433465105,3.2078,2499.3,2499.2,0.80019]
[1750433465306,4.44225226,2499.3,2498.9,2.00071]
[1750433465506,2.03465226,2499.2,2499.1,0.80019]
[1750433465708,3.37435226,2499.2,2499.1,0.80019]
[1750433466307,1.23445226,2499.2,2499.1,0.80019]
[1750433466504,3.2078,2499.3,2499.2,0.80019]
[1750433466706,4.44284598,2499.3,2499.2,0.80019]
[1750433467211,5.24300598,2499.3,2499.2,0.80019]
[1750433467513,4.44284598,2499.3,2499.2,0.80019]
[1750433468820,3.2078,2499.6,2499.2,0.80019]
[1750433469029,0.80019,2499.2,2499.1,0.6574]
[1750433469230,0.80019,2499.2,2498.9,6.827]
[1750433469231,3.2078,2499.3,2499.2,0.80019]
[1750433469415,4.44346779,2499.3,2499.2,0.80019]
[1750433469920,4.44346779,2499.3,2498.8,0.6574]
[1750433470127,4.44346779,2499.3,2498.8,0.80029]
[1750433470128,0.8003,2498.9,2498.8,0.80029]
[1750433470418,0.80033,2498.8,2498.7,0.80032]
[1750433470619,3.2078,2499.0,2498.8,0.8003]
[1750433470824,3.2078,2499.0,2498.9,0.80029]
[1750433471021,0.6493,2499.2,2499.1,0.80023]
[1750433471220,1.23569414,2499.2,2499.1,0.80023]
[1750433472229,2.03588414,2499.2,2499.1,0.80023]
[1750433472924,1.23569414,2499.2,2499.1,0.80023]
[1750433473134,2.03588414,2499.2,2499.1,0.80023]
[1750433473826,1.23569414,2499.2,2499.1,0.80023]
[1750433476125,2.03588414,2499.2,2499.1,0.80023]
[1750433476622,0.80026,2499.1,2499.0,0.80023]
[1750433476834,2.03595414,2499.1,2499.0,0.80023]
[1750433477223,1.23569414,2499.1,2499.0,0.80023]
[1750433477932,2.03592414,2499.1,2499.0,0.80023]
[1750433479527,1.23569414,2499.1,2499.0,0.80023]
[1750433480525,5.54813776,2499.6,2499.5,0.8001]
[1750433480830,3.14940719,2499.9,2499.5,0.8001]
[1750433480831,4.00777,2499.9,2499.8,0.8]
[1750433481022,3.2078,2499.9,2499.8,0.8]
[1750433481422,4.00777,2499.9,2499.8,0.8]
[1750433481622,4.00777,2499.9,2499.6,2.64674]
[1750433481623,3.2078,2499.9,2499.6,0.6466]
[1750433481822,3.2078,2499.9,2499.6,1.44665]
[1750433481823,0.80003,2499.7,2499.6,1.44665]
[1750433482733,0.80003,2499.7,2499.6,0.80005]
[1750433483123,5.3582,2499.9,2499.8,0.8]
[1750433483423,0.80005,2499.8,2499.7,0.80001]
[1750433484330,5.35818,2499.9,2499.8,0.8]
[1750433484627,0.80004,2499.8,2499.7,0.80001]
[1750433485430,0.8,2499.8,2499.7,0.80001]
[1750433485634,3.2078,2499.9,2499.8,0.8]
[1750433485929,26.70515,2500.0,2499.9,0.79997]
[1750433486132,25.9052,2500.0,2499.9,0.79997]